fUST/lending_fUST_20260104
["ID","MTS","AMOUNT","RATE_DAILY","PERIOD"]
[400424021,1767537384132,-151.36,9.894e-05,2]
[400424022,1767537385109,1849.84307036,9.795e-05,2]
[400424023,1767537385169,3150.15692964,9.795e-05,2]
[400424024,1767537386899,-188.77398064,9.894e-05,2]
[400424025,1767537387823,-99.29540142,9.894e-05,2]
[400424026,1767537401938,5000.0,9.894e-05,2]
[400424027,1767537406105,819.32862025,9.438e-05,2]
[400424030,1767537408009,-400.4819955,9.992e-05,2]
[400424031,1767537408083,-500.0,9.992e-05,2]
[400424032,1767537408152,-500.0,9.992e-05,2]
[400424033,1767537408222,-500.0,9.992e-05,2]
[400424034,1767537408292,-500.0,9.992e-05,2]
[400424035,1767537408371,-500.0,9.992e-05,2]
[400424036,1767537408452,-500.0,9.992e-05,2]
[400424037,1767537408530,-500.0,9.992e-05,2]
[400424038,1767537408606,-500.0,9.992e-05,2]
[400424039,1767537408682,-500.0,9.992e-05,2]
[400424040,1767537409004,-500.0,9.992e-05,2]
[400424041,1767537409073,-500.0,9.992e-05,2]
[400424042,1767537409142,-500.0,9.992e-05,2]
[400424043,1767537409211,-500.0,9.992e-05,2]
[400424044,1767537409279,-500.0,9.992e-05,2]
[400424045,1767537409358,-500.0,9.992e-05,2]
[400424046,1767537409431,-500.0,9.992e-05,2]
[400424047,1767537409503,-500.0,9.992e-05,2]
[400424048,1767537409578,-500.0,9.992e-05,2]
[400424049,1767537409649,-500.0,9.992e-05,2]
[400424050,1767537410250,-500.0,9.992e-05,2]
[400424051,1767537410317,-500.0,9.992e-05,2]
[400424052,1767537410385,-237.00000001,9.992e-05,2]
[400424053,1767537410451,-163.88103349,9.992e-05,2]
[400424054,1767537410516,-500.0,9.992e-05,2]
[400424055,1767537410586,-500.0,9.992e-05,2]
[400424056,1767537410653,-500.0,9.992e-05,2]
[400424057,1767537410715,-500.0,9.992e-05,2]
[400424058,1767537410779,-500.0,9.992e-05,2]
[400424059,1767537410838,-500.0,9.992e-05,2]
[400424060,1767537410899,-500.0,9.992e-05,2]
[400424061,1767537411216,-500.0,9.992e-05,2]
[400424062,1767537411278,-386.86388653,9.992e-05,2]
[400424063,1767537411342,-500.0,9.992e-05,2]
[400424064,1767537411407,-500.0,9.992e-05,2]
[400424065,1767537411471,-500.0,9.992e-05,2]
[400424066,1767537411538,-500.0,9.992e-05,2]
[400424067,1767537411606,-500.0,9.992e-05,2]
[400424068,1767537411676,-500.0,9.992e-05,2]
[400424069,1767537411745,-500.0,9.992e-05,2]
[400424070,1767537411814,-500.0,9.992e-05,2]
[400424071,1767537412220,-500.0,9.992e-05,2]
[400424072,1767537412283,-500.0,9.992e-05,2]
[400424073,1767537412345,-500.0,9.992e-05,2]
[400424074,1767537412410,-500.0,9.992e-05,2]
[400424075,1767537412472,-500.0,9.992e-05,2]
[400424076,1767537412540,-597.47389587,9.992e-05,2]
[400424077,1767537413173,500.0,9.992e-05,2]
[400424078,1767537413237,500.0,9.992e-05,2]
[400424079,1767537413317,500.0,9.992e-05,2]
[400424080,1767537413391,500.0,9.992e-05,2]
[400424081,1767537413466,500.0,9.992e-05,2]
[400424082,1767537413539,500.0,9.992e-05,2]
[400424083,1767537413615,500.0,9.992e-05,2]
[400424084,1767537413754,305.06220826,9.992e-05,2]
[400424085,1767537413823,3982.09057691,9.894e-05,2]
[400424086,1767537413882,1017.90942309,9.894e-05,2]
[400424087,1767537414965,-18.70235102,9.992e-05,2]
[400424088,1767537414990,-254.7609489,9.992e-05,2]
[400424089,1767537418101,-245.2390511,9.992e-05,2]
[400424090,1767537418163,-500.0,9.992e-05,2]
[400424091,1767537418224,-500.0,9.992e-05,2]
[400424092,1767537418286,-500.0,9.992e-05,2]
[400424093,1767537418350,-500.0,9.992e-05,2]
[400424094,1767537418415,-500.0,9.992e-05,2]
[400424095,1767537422296,300.0,9.991e-05,2]
[400424096,1767537426100,-183.05847986,9.992e-05,2]
[400424097,1767537426175,242.86866371,9.992e-05,2]
[400424098,1767537429693,-343.50205871,9.992e-05,2]
[400424099,1767537431654,-249.18485632,9.992e-05,2]
[400424100,1767537434467,3966.66323409,9.992e-05,2]
[400424101,1767537450778,3790.20568565,9.982e-05,2]
[400424102,1767537452189,172.91,6.913e-05,2]
[400424103,1767537452641,259.37,7.227e-05,2]
[400424104,1767537453036,345.82,7.541e-05,2]
[400424105,1767537453473,432.28,7.855e-05,2]
[400424106,1767537453866,518.73,8.169e-05,2]
[400424107,1767537454319,605.19,8.484e-05,2]
[400424108,1767537454873,691.65,8.798e-05,2]
[400424109,1767537455390,778.1,9.112e-05,2]
[400424110,1767537455784,864.56,9.426e-05,2]
[400424111,1767537527472,178.65,7.656e-05,2]
[400424112,1767537527960,214.38,7.963e-05,2]
[400424113,1767537528349,250.11,8.269e-05,2]
[400424114,1767537528800,285.84,8.575e-05,2]
[400424115,1767537529225,321.57,8.881e-05,2]
[400424116,1767537529628,290.64431435,9.188e-05,2]
[400424117,1767537529683,66.65568565,9.188e-05,2]
[400424118,1767537544861,217.442454,9.982e-05,2]
[400424119,1767537545468,-169.3686996,9.99e-05,2]
[400424120,1767537548100,-130.6313004,9.99e-05,2]
[400424121,1767537548124,-223.32092733,9.99e-05,2]
[400424122,1767537560607,184.44840474,9.405e-05,2]
[400424123,1767537564600,153.0,8.3e-07,2]
[400424124,1767537565646,153.0,8.3e-07,2]
[400424125,1767537566708,153.0,8.3e-07,2]
[400424126,1767537575169,155.0,8.246e-05,2]
[400424127,1767537577320,-76.67907267,9.99e-05,2]
[400424128,1767537577851,153.0,8.3e-07,2]
[400424129,1767537579294,-186.53817251,9.991e-05,2]
[400424130,1767537581033,-74.55863184,9.991e-05,2]
[400424131,1767537581059,-225.44136816,9.991e-05,2]
[400424132,1767537582900,-242.6933364,9.991e-05,2]
[400424133,1767537586685,-31.86529544,9.991e-05,2]
[400424134,1767537586712,-193.51431562,9.991e-05,2]
[400424137,1767537589359,-183.05847986,9.991e-05,2]
[400424138,1767537590903,-123.42720452,9.991e-05,2]
[400424139,1767537590928,-68.71135427,9.991e-05,2]
[400424141,1767537593858,-316.73809202,9.991e-05,2]
[400424142,1767537597088,-114.55055371,9.991e-05,2]
[400424143,1767537597115,-111.61048451,9.991e-05,2]
[400424144,1767537599822,-272.13331802,9.991e-05,2]
[400424145,1767537601382,300.0,9.99e-05,2]
[400424146,1767537602200,300.0,9.99e-05,2]
[400424147,1767537602372,300.0,9.99e-05,2]
[400424148,1767537603060,-116.25619747,9.991e-05,2]
[400424149,1767537603090,-144.09417351,9.991e-05,2]
[400424150,1767537606045,-271.60931193,9.991e-05,2]
[400424152,1767537606613,9100.01,9.991e-05,2]
[400424153,1767537606688,10000.01,9.991e-05,2]
[400424154,1767537606768,10000.01,9.991e-05,2]
[400424155,1767537606848,10000.01,9.991e-05,2]
[400424156,1767537606920,10000.01,9.991e-05,2]
[400424157,1767537606994,899.95,9.991e-05,2]
[400424158,1767537607487,-84.29651456,9.991e-05,2]
[400424159,1767537607519,-190.32387438,9.991e-05,2]
[400424160,1767537607796,300.0,9.99e-05,2]
[400424161,1767537608105,1200.0,9.99e-05,2]
[400424162,1767537611056,-228.59411619,9.991e-05,2]
[400424164,1767537614446,-81.08200943,9.991e-05,2]
[400424165,1767537614472,-320.99494392,9.991e-05,2]
[400424166,1767537617133,-179.00505608,9.991e-05,2]
[400424167,1767537617157,-15.81075284,9.991e-05,2]
[400424168,1767537623787,5000.0,9.991e-05,2]
[400424169,1767537624602,-316.94152014,9.991e-05,2]
[400424172,1767537626167,-167.24772702,9.991e-05,2]
[400424173,1767537626192,-122.82569662,9.991e-05,2]
[400424174,1767537630394,-187.23850627,9.991e-05,2]
[400424175,1767537631935,-189.93579711,9.991e-05,2]
[400424176,1767537631964,-297.29640192,9.991e-05,2]
[400424177,1767537633400,-170.41,9.991e-05,2]
[400424178,1767537635292,-32.29359808,9.991e-05,2]
[400424179,1767537635318,-168.62787758,9.991e-05,2]
[400424180,1767537637807,-277.39278668,9.991e-05,2]
[400424181,1767537640050,-53.97933574,9.991e-05,2]
[400424182,1767537640074,-209.65154295,9.991e-05,2]
[400424183,1767537640100,-125.01661453,9.991e-05,2]
[400424185,1767537642693,-174.46640061,9.991e-05,2]
[400424186,1767537645270,-160.24657823,9.991e-05,2]
[400424187,1767537648669,2600.06,9.991e-05,2]
[400424188,1767537648714,-360.45017998,9.991e-05,2]
[400424192,1767537663892,179.91,9.248e-05,2]
[400424193,1767537664300,209.9,9.603e-05,2]
[400424194,1767537664726,239.89,9.959e-05,2]
[400424201,1767537713658,403.56713648,9.412e-05,2]
[400424202,1767537734793,168.49,9.597e-05,2]
[400424203,1767537735214,192.56,9.952e-05,2]
[400424204,1767537735469,-300.0,9.989e-05,2]
[400424205,1767537735493,-193.02423372,9.989e-05,2]
[400424206,1767537786161,-106.97576628,9.989e-05,2]
[400424207,1767537786184,-162.12096912,9.989e-05,2]
[400424208,1767537801708,-387.53459801,9.988e-05,2]
[400424209,1767537803718,155.8,9.952e-05,2]
[400424223,1767537828596,8449.89286352,8.992e-05,2]
[400424224,1767537828656,10000.01,8.992e-05,2]
[400424225,1767537828719,7880.76387908,8.992e-05,2]
[400424226,1767537832392,2119.24612092,9.981e-05,2]
[400424231,1767537872676,151.88,8.317e-05,2]
[400424232,1767537873141,173.58,8.625e-05,2]
[400424233,1767537873666,195.28,8.933e-05,2]
[400424234,1767537874104,216.97,9.241e-05,2]
[400424237,1767537934480,357.93444362,0.0002399,120]
[400424238,1767538015237,5000.0,0.00011,10]
[400424264,1767538071294,155.0,6e-05,2]
[400424285,1767538218132,531.6070502,8.988e-05,2]
[400424286,1767538223368,5000.0,9.874e-05,2]
[400424311,1767538232198,-474.74076201,9.884e-05,2]
[400424313,1767538232211,-83.25923799,9.884e-05,2]
[400424315,1767538232221,-182.76776304,9.887e-05,2]
[400424316,1767538232231,-500.0,9.887e-05,2]
[400424317,1767538232241,-500.0,9.887e-05,2]
[400424318,1767538232251,-500.0,9.887e-05,2]
[400424319,1767538232261,-500.0,9.887e-05,2]
[400424320,1767538232271,-1532.31360214,9.888e-05,2]
[400424321,1767538232283,-5236.71176124,9.888e-05,2]
[400424336,1767538238140,-500.0,9.887e-05,2]
[400424337,1767538238150,-500.0,9.887e-05,2]
[400424338,1767538238160,-500.0,9.887e-05,2]
[400424339,1767538238170,-500.0,9.887e-05,2]
[400424340,1767538238180,-585.97398745,9.887e-05,2]
[400424341,1767538238191,-500.0,9.887e-05,2]
[400424342,1767538238201,-500.0,9.887e-05,2]
[400424343,1767538238211,-500.0,9.887e-05,2]
[400424344,1767538238220,-500.0,9.887e-05,2]
[400424345,1767538238230,-500.0,9.887e-05,2]
[400424346,1767538238240,-500.0,9.887e-05,2]
[400424347,1767538238249,-500.0,9.887e-05,2]
[400424348,1767538238259,-500.0,9.887e-05,2]
[400424349,1767538238269,-162.51225269,9.887e-05,2]
[400424350,1767538238283,-215.92927673,9.887e-05,2]
[400424351,1767538238293,-500.0,9.887e-05,2]
[400424352,1767538238303,-500.0,9.887e-05,2]
[400424353,1767538238313,-500.0,9.887e-05,2]
[400424354,1767538238324,-500.0,9.887e-05,2]
[400424355,1767538238333,-500.0,9.887e-05,2]
[400424356,1767538238343,-500.0,9.887e-05,2]
[400424357,1767538238354,-500.0,9.887e-05,2]
[400424358,1767538238363,-500.0,9.887e-05,2]
[400424359,1767538238374,-353.22715886,9.887e-05,2]
[400424360,1767538238384,-412.51655187,9.887e-05,2]
[400424361,1767538238394,-500.0,9.887e-05,2]
[400424362,1767538238403,-500.0,9.887e-05,2]
[400424363,1767538238412,-500.0,9.887e-05,2]
[400424364,1767538238422,-500.0,9.887e-05,2]
[400424365,1767538238432,-500.0,9.887e-05,2]
[400424366,1767538238442,-500.0,9.887e-05,2]
[400424367,1767538238452,-548.76455928,9.887e-05,2]
[400424368,1767538238461,-500.0,9.887e-05,2]
[400424369,1767538238471,-500.0,9.887e-05,2]
[400424370,1767538238481,-500.0,9.887e-05,2]
[400424371,1767538238491,-500.0,9.887e-05,2]
[400424372,1767538238501,-500.0,9.887e-05,2]
[400424373,1767538238512,-500.0,9.887e-05,2]
[400424374,1767538238522,-500.0,9.887e-05,2]
[400424375,1767538238532,-500.0,9.887e-05,2]
[400424376,1767538238542,-285.08832879,9.887e-05,2]
[400424377,1767538238551,-500.0,9.887e-05,2]
[400424378,1767538238561,-500.0,9.887e-05,2]
[400424379,1767538238571,-500.0,9.887e-05,2]
[400424380,1767538238582,-500.0,9.887e-05,2]
[400424381,1767538238592,-500.0,9.887e-05,2]
[400424382,1767538238602,-500.0,9.887e-05,2]
[400424383,1767538238611,-500.0,9.887e-05,2]
[400424384,1767538238621,-500.0,9.887e-05,2]
[400424385,1767538238632,-500.0,9.887e-05,2]
[400424386,1767538238642,-500.0,9.887e-05,2]
[400424387,1767538238652,-500.0,9.887e-05,2]
[400424388,1767538238663,-500.0,9.887e-05,2]
[400424389,1767538238673,-500.0,9.887e-05,2]
[400424390,1767538238683,-500.0,9.887e-05,2]
[400424391,1767538238693,-500.0,9.887e-05,2]
[400424392,1767538238704,-500.0,9.887e-05,2]
[400424393,1767538238714,-500.0,9.887e-05,2]
[400424394,1767538238724,-5827.27725316,9.888e-05,2]
[400424395,1767538238737,-17034.21923343,9.888e-05,2]
[400424396,1767538238749,-752.55,9.888e-05,2]
[400424473,1767538241084,-3e-08,9.888e-05,2]
[400424760,1767538245180,-3007.56675459,9.888e-05,2]
[400424776,1767538247455,-13034.69885962,9.888e-05,2]
[400424777,1767538247535,-346.38830132,9.888e-05,2]
[400424778,1767538247676,4468.4029498,9.874e-05,2]
[400424779,1767538247749,531.5970502,9.874e-05,2]
[400424780,1767538271283,163.17,9.436e-05,2]
[400424781,1767538271408,5000.0,9.878e-05,2]
[400424782,1767538271784,186.48,9.786e-05,2]
[400424784,1767538296764,4650.36,9.878e-05,2]
[400424785,1767538296830,349.64,9.878e-05,2]
[400424790,1767538303636,153.108,9.69e-05,2]
[400424791,1767538308592,-300.0,9.886e-05,2]
[400424792,1767538320324,5000.0,9.886e-05,2]
[400424793,1767538320400,649.65989138,9.218e-05,2]
[400424794,1767538322413,300.0,9.886e-05,2]
[400424796,1767538339889,151.82,8.08e-05,2]
[400424797,1767538340330,202.43,8.431e-05,2]
[400424798,1767538340764,253.03,8.782e-05,2]
[400424799,1767538341150,303.64,9.134e-05,2]
[400424800,1767538341660,354.25,9.485e-05,2]
[400424801,1767538342066,404.85,9.836e-05,2]
[400424802,1767538344608,5000.0,9.886e-05,2]
[400424814,1767538369139,3329.99,9.886e-05,2]
[400424815,1767538369206,1670.01,9.886e-05,2]
[400424818,1767538369845,8330.0,8.987e-05,2]
[400424819,1767538369909,1670.0,8.987e-05,2]
[400424820,1767538382720,300.0,9.886e-05,2]
[400424822,1767538392513,5000.0,9.886e-05,2]
[400424823,1767538397264,1200.0,9.886e-05,2]
[400424830,1767538411767,176.11,8.111e-05,2]
[400424831,1767538412298,205.46,8.423e-05,2]
[400424832,1767538412779,234.82,8.735e-05,2]
[400424833,1767538413242,264.17,9.047e-05,2]
[400424834,1767538413633,293.52,9.359e-05,2]
[400424837,1767538416624,5000.0,9.886e-05,2]
[400424847,1767538433508,-363.23993639,9.886e-05,2]
[400424848,1767538433587,-500.0,9.887e-05,2]
[400424849,1767538433673,-160.18179121,9.887e-05,2]
[400424850,1767538433753,-500.0,9.887e-05,2]
[400424851,1767538433829,-500.0,9.887e-05,2]
[400424852,1767538433904,-500.0,9.887e-05,2]
[400424853,1767538433980,-500.0,9.887e-05,2]
[400424854,1767538434069,-500.0,9.887e-05,2]
[400424855,1767538434150,-391.68424295,9.887e-05,2]
[400424856,1767538440453,2169.7980589,9.887e-05,2]
[400424857,1767538440519,2830.2019411,9.887e-05,2]
[400424858,1767538448699,3381.0,0.00030137,120]
[400424859,1767538451930,500.0,9.887e-05,2]
[400424860,1767538451997,500.0,9.887e-05,2]
[400424861,1767538452072,500.0,9.887e-05,2]
[400424862,1767538452135,500.0,9.887e-05,2]
[400424863,1767538452344,500.0,9.887e-05,2]
[400424864,1767538452411,500.0,9.887e-05,2]
[400424865,1767538452663,500.0,9.887e-05,2]
[400424866,1767538452767,500.0,9.887e-05,2]
[400424867,1767538453005,250.0,9.887e-05,2]
[400424868,1767538453072,500.0,9.887e-05,2]
[400424869,1767538453429,500.0,9.887e-05,2]
[400424870,1767538453754,500.0,9.887e-05,2]
[400424871,1767538454082,500.0,9.887e-05,2]
[400424872,1767538454405,500.0,9.887e-05,2]
[400424873,1767538454712,419.8080589,9.887e-05,2]
[400424874,1767538454773,80.1919411,9.887e-05,2]
[400424877,1767538455077,500.0,9.887e-05,2]
[400424878,1767538455387,500.0,9.887e-05,2]
[400424894,1767538464067,5000.0,9.788e-05,2]
[400424896,1767538474648,548.31619378,9.151e-05,2]
[400424917,1767538488144,4451.69380622,9.877e-05,2]
[400424918,1767538488200,548.30619378,9.877e-05,2]
[400424932,1767538511774,5000.0,9.877e-05,2]
[400424946,1767538517636,-300.0,9.886e-05,2]
[400424947,1767538517716,-300.0,9.886e-05,2]
[400424948,1767538517797,-300.0,9.886e-05,2]
[400424950,1767538517886,-1200.0,9.886e-05,2]
[400424954,1767538524086,155.0,7e-05,2]
[400424955,1767538535250,5000.0,9.886e-05,2]
[400424958,1767538558572,645.01,9.886e-05,2]
[400424959,1767538558647,4354.99,9.886e-05,2]
[400424960,1767538565455,-500.0,9.887e-05,2]
[400424961,1767538565534,-500.0,9.887e-05,2]
[400424962,1767538565857,-500.0,9.887e-05,2]
[400424963,1767538565938,-500.0,9.887e-05,2]
[400424964,1767538566016,-500.0,9.887e-05,2]
[400424965,1767538566098,-500.0,9.887e-05,2]
[400424966,1767538566185,-500.0,9.887e-05,2]
[400424967,1767538566263,-511.47180829,9.887e-05,2]
[400424968,1767538566344,-500.0,9.887e-05,2]
[400424969,1767538566418,-477.06638342,9.887e-05,2]
[400424970,1767538566881,-22.93361658,9.887e-05,2]
[400424971,1767538566974,-500.0,9.887e-05,2]
[400424972,1767538567055,-500.0,9.887e-05,2]
[400424973,1767538567135,-500.0,9.887e-05,2]
[400424974,1767538567213,-500.0,9.887e-05,2]
[400424975,1767538567294,-500.0,9.887e-05,2]
[400424976,1767538567375,-500.0,9.887e-05,2]
[400424977,1767538567460,-247.28192306,9.887e-05,2]
[400424978,1767538567548,-285.08832879,9.887e-05,2]
[400424979,1767538567646,-500.0,9.887e-05,2]
[400424980,1767538567739,-500.0,9.887e-05,2]
[400424981,1767538567826,-186.65429291,9.887e-05,2]
[400424982,1767538567907,-181.84433201,9.887e-05,2]
[400424983,1767538568404,-500.0,9.887e-05,2]
[400424984,1767538568487,-500.0,9.887e-05,2]
[400424985,1767538568572,-500.0,9.887e-05,2]
[400424986,1767538568657,-461.44765051,9.887e-05,2]
[400424987,1767538570827,6077.11469898,9.887e-05,2]
[400424988,1767538570897,10000.01,9.887e-05,2]
[400424989,1767538570969,10000.01,9.887e-05,2]
[400425006,1767538641194,-180.74,8.703e-05,2]
[400425007,1767538641220,-393.30035241,8.885e-05,2]
[400425008,1767538641251,-87.58749503,9.066e-05,2]
[400425009,1767538645877,-138.33250497,9.066e-05,2]
[400425010,1767538645902,-58.13749506,9.152e-05,2]
[400425011,1767538683983,168.41,7.857e-05,2]
[400425012,1767538684881,210.51,8.184e-05,2]
[400425013,1767538685377,252.61,8.512e-05,2]
[400425014,1767538685835,294.71,8.839e-05,2]
[400425015,1767538703642,-334.42041424,9.152e-05,2]
[400425016,1767538703672,-4.96153167,9.166e-05,2]
[400425017,1767538706855,-165.09668745,9.166e-05,2]
[400425018,1767538756351,168.9,9.078e-05,2]
[400425019,1767538775423,-305.04532544,9.334e-05,2]
[400425021,1767538779268,-306.01770426,9.334e-05,2]
[400425022,1767538781276,-500.0,9.334e-05,2]
[400425023,1767538781352,528.0773759,9.082e-05,2]
[400425024,1767538782818,-311.46308135,9.334e-05,2]
[400425025,1767538784990,-153.13604317,9.334e-05,2]
[400425026,1767538786548,-300.0,9.334e-05,2]
[400425027,1767538789680,-300.08689002,9.334e-05,2]
[400425028,1767538792274,-350.24968427,9.334e-05,2]
[400425029,1767538794870,-245.72666961,9.334e-05,2]
[400425030,1767538803988,896.06324393,9.324e-05,2]
[400425031,1767538826830,156.0,8.541e-05,2]
[400425032,1767538827299,182.0,8.869e-05,2]
[400425033,1767538828184,208.0,9.198e-05,2]
[400425043,1767538938372,155.0,7e-05,2]
[400425044,1767538948795,5000.0,9.324e-05,2]
[400425045,1767538966213,152.4,9.142e-05,2]
[400425046,1767538972653,2722.46938017,9.324e-05,2]
[400425047,1767538972722,2277.53061983,9.324e-05,2]
[400425049,1767538997471,5000.0,9.324e-05,2]
[400425050,1767539031730,-184.56677848,8.833e-05,2]
[400425051,1767539035173,-205.14083363,8.833e-05,2]
[400425053,1767539037323,-342.29399781,8.833e-05,2]
[400425054,1767539039330,-223.41335437,8.833e-05,2]
[400425056,1767539041282,-313.16377601,8.833e-05,2]
[400425057,1767539043264,-133.1821344,8.833e-05,2]
[400425058,1767539043290,-194.604636,9.241e-05,2]
[400425059,1767539048711,-251.83622399,9.241e-05,2]
[400425060,1767539051431,-165.46191991,9.241e-05,2]
[400425061,1767539052864,-157.17890079,9.241e-05,2]
[400425062,1767539054902,-183.5603008,9.241e-05,2]
[400425063,1767539058155,-153.07,9.241e-05,2]
[400425064,1767539060251,1264.09687612,9.231e-05,2]
[400425065,1767539062503,-197.98311419,9.241e-05,2]
[400425066,1767539064943,-169.32352975,9.241e-05,2]
[400425067,1767539066383,-306.23836733,9.241e-05,2]
[400425072,1767539198090,8712.6185926,8.487e-05,2]
[400425074,1767539206469,23.29453128,9.231e-05,2]
[400425075,1767539206540,4976.70546872,9.231e-05,2]
[400425076,1767539208024,336.60129281,0.0001,3]
[400425082,1767539230468,5000.0,9.324e-05,2]
[400425193,1767539254626,2412.00657554,9.324e-05,2]
[400425194,1767539283015,183.5,5.994e-05,2]
[400425195,1767539283290,183.5,5.994e-05,2]
[400425196,1767539283554,183.49,5.994e-05,2]
[400425197,1767539283586,-217.76,8.377e-05,2]
[400425198,1767539285617,-265.39,8.377e-05,2]
[400425200,1767539289294,-184.61968079,8.377e-05,2]
[400425201,1767539291615,-242.49783502,8.377e-05,2]
[400425202,1767539294594,-273.89332638,8.377e-05,2]
[400425203,1767539296653,-350.95004616,8.377e-05,2]
[400425204,1767539298100,-215.11810936,8.377e-05,2]
[400425205,1767539300152,-341.92706528,8.377e-05,2]
[400425206,1767539303011,-273.4815141,8.377e-05,2]
[400425207,1767539305101,-5.68389857,8.377e-05,2]
[400425208,1767539305126,-403.41199244,8.419e-05,2]
[400425209,1767539305148,-71.6062384,8.462e-05,2]
[400425210,1767539331680,-476.8784108,8.377e-05,2]
[400425211,1767539334932,-321.81635649,8.377e-05,2]
[400425212,1767539337024,-153.07,8.377e-05,2]
[400425213,1767539338457,-169.32352975,8.377e-05,2]
[400425214,1767539340361,-191.55875866,8.377e-05,2]
[400425215,1767539342459,-153.07,8.293e-05,2]
[400425216,1767539342483,-13.99774744,8.377e-05,2]
[400425217,1767539343265,-1036.54490336,8.377e-05,2]
[400425218,1767539343980,-145.5281902,8.462e-05,2]
[400425219,1767539344007,-54.4718098,9.063e-05,2]
[400425223,1767539361113,-968.01829704,8.972e-05,2]
[400425224,1767539361222,-104.5881902,9.063e-05,2]
[400425225,1767539382554,-500.0,9.334e-05,2]
[400425226,1767539382628,-551.0,9.334e-05,2]
[400425236,1767539400165,-300.0,9.376e-05,2]
[400425237,1767539408758,1200.0,9.376e-05,2]
[400425238,1767539409104,300.0,9.376e-05,2]
[400425239,1767539416229,-1200.0,9.377e-05,2]
[400425240,1767539416303,-300.0,9.377e-05,2]
[400425241,1767539416388,-300.0,9.377e-05,2]
[400425242,1767539416472,-300.0,9.377e-05,2]
[400425243,1767539416549,-300.0,9.377e-05,2]
[400425244,1767539416631,-551.0,9.377e-05,2]
[400425255,1767539432253,-50000.0,9.378e-05,2]
[400425256,1767539432263,-4008.95821926,9.379e-05,2]
[400425258,1767539432273,-160.72,9.417e-05,2]
[400425260,1767539432283,-405.57907914,9.544e-05,2]
[400425261,1767539432293,-586.37740678,9.544e-05,2]
[400425263,1767539432302,-255.02522875,9.544e-05,2]
[400425287,1767539438321,-331.35217803,9.544e-05,2]
[400425288,1767539438335,-586.37740678,9.544e-05,2]
[400425289,1767539438346,-586.37740678,9.544e-05,2]
[400425290,1767539438356,-586.37740678,9.544e-05,2]
[400425291,1767539438366,-586.37740678,9.544e-05,2]
[400425292,1767539438377,-586.37740678,9.544e-05,2]
[400425293,1767539438387,-586.37740678,9.544e-05,2]
[400425294,1767539438396,-586.37740678,9.544e-05,2]
[400425295,1767539438608,-477.34031811,9.544e-05,2]
[400425296,1767539438629,-109.03708867,9.544e-05,2]
[400425297,1767539438639,-586.37740678,9.544e-05,2]
[400425298,1767539438649,-586.37740678,9.544e-05,2]
[400425299,1767539438660,-223.66016243,9.544e-05,2]
[400425300,1767539438671,-362.71724435,9.544e-05,2]
[400425301,1767539438682,-586.37740678,9.544e-05,2]
[400425302,1767539438691,-501.23493955,9.544e-05,2]
[400425303,1767539438702,-502.13169587,9.544e-05,2]
[400425304,1767539438712,-500.0,9.544e-05,2]
[400425305,1767539438722,-500.0,9.544e-05,2]
[400425306,1767539438732,-201.07944769,9.544e-05,2]
[400425307,1767539438742,-500.0,9.544e-05,2]
[400425308,1767539438752,-500.0,9.544e-05,2]
[400425309,1767539438762,-500.0,9.544e-05,2]
[400425310,1767539438772,-500.0,9.544e-05,2]
[400425311,1767539438782,-500.0,9.544e-05,2]
[400425312,1767539438792,-500.0,9.544e-05,2]
[400425313,1767539438802,-500.0,9.544e-05,2]
[400425314,1767539438811,-155.051901,9.544e-05,2]
[400425315,1767539438821,-500.0,9.544e-05,2]
[400425316,1767539438831,-500.0,9.544e-05,2]
[400425317,1767539438841,-500.0,9.544e-05,2]
[400425318,1767539438851,-500.0,9.544e-05,2]
[400425319,1767539438860,-500.0,9.544e-05,2]
[400425320,1767539438870,-500.0,9.544e-05,2]
[400425321,1767539438880,-500.0,9.544e-05,2]
[400425322,1767539438890,-500.0,9.544e-05,2]
[400425323,1767539438900,-500.0,9.544e-05,2]
[400425324,1767539438910,-500.0,9.544e-05,2]
[400425325,1767539438920,-500.0,9.544e-05,2]